[Event "Early-Titled-Tuesday-Blitz-September-05-2023"]
[Site "Chess.com"]
[Date "2023.09.05"]
[Round "7"]
[White "mitrabhaa"]
[Black "djano"]
[Result "1-0"]
[WhiteElo "2825"]
[BlackElo "2605"]
[TimeControl "180+1"]
[EndTime "9:16:06 PDT"]
[Termination "mitrabhaa won by resignation"]

1. Nf3 {[%clk 0:02:31.5]} 1... g6 {[%clk 0:02:32.8]} 2. d4 {[%clk 0:02:31.3]}
2... Bg7 {[%clk 0:02:33.1]} 3. e4 {[%clk 0:02:31.7]} 3... d6 {[%clk 0:02:33.1]}
4. Nc3 {[%clk 0:02:31.2]} 4... Nf6 {[%clk 0:02:32.5]} 5. h3 {[%clk 0:02:31.7]}
5... O-O {[%clk 0:02:32.2]} 6. Be3 {[%clk 0:02:31.4]} 6... Nc6 {[%clk
0:02:31.7]} 7. Qd2 {[%clk 0:02:31.9]} 7... e5 {[%clk 0:02:32]} 8. d5 {[%clk
0:02:28.9]} 8... Ne7 {[%clk 0:02:31.4]} 9. Bh6 {[%clk 0:02:29.6]} 9... c6 {[%clk
0:02:18.3]} 10. Bxg7 {[%clk 0:02:28.7]} 10... Kxg7 {[%clk 0:02:19.2]} 11. dxc6
{[%clk 0:02:28.1]} 11... Nxc6 {[%clk 0:02:18.6]} 12. Bc4 {[%clk 0:02:28.1]}
12... Qc7 {[%clk 0:02:12.9]} 13. Nb5 {[%clk 0:02:26.9]} 13... Qb6 {[%clk
0:02:07.9]} 14. Nxd6 {[%clk 0:02:26.3]} 14... Rd8 {[%clk 0:01:56.5]} 15. Ng5
{[%clk 0:02:20.8]} 15... Nd4 {[%clk 0:01:42.3]} 16. Ngxf7 {[%clk 0:02:20.3]}
16... Rxd6 {[%clk 0:01:29.6]} 17. Qh6+ {[%clk 0:02:19.4]} 17... Kg8 {[%clk
0:01:15]} 18. Nxd6+ {[%clk 0:02:18.2]} 18... Be6 {[%clk 0:01:15.3]} 19. Bxe6+
{[%clk 0:02:17.3]} 19... Nxe6 {[%clk 0:01:16.2]} 20. O-O-O {[%clk 0:02:16]}
20... Nd4 {[%clk 0:01:06]} 21. Rxd4 {[%clk 0:02:10.4]} 21... Qxd4 {[%clk
0:01:02.3]} 22. Rd1 {[%clk 0:02:03]} 22... Qxf2 {[%clk 0:01:02.3]} 23. Nf5
{[%clk 0:01:56.4]} 23... Qf4+ {[%clk 0:00:43.7]} 24. Qxf4 {[%clk 0:01:51.2]}
24... exf4 {[%clk 0:00:44.6]} 25. Nd6 {[%clk 0:01:51]} 25... Nh5 {[%clk
0:00:26.7]} 26. Nxb7 {[%clk 0:01:50.5]} 26... Kf7 {[%clk 0:00:22.7]} 27. Rd7+
{[%clk 0:01:48.8]} 27... Kf6 {[%clk 0:00:18.8]} 28. Rxh7 {[%clk 0:01:48.6]}
28... Re8 {[%clk 0:00:17.1]} 29. Nd6 {[%clk 0:01:47.8]} 29... Re6 {[%clk
0:00:17.4]} 30. Rf7+ {[%clk 0:01:46.6]} 30... Ke5 {[%clk 0:00:15.3]} 31. Nb5
{[%clk 0:01:41.9]} 31... Kxe4 {[%clk 0:00:13.7]} 32. Kd2 {[%clk 0:01:42.3]}
32... Ng3 {[%clk 0:00:13.1]} 33. Nc3+ {[%clk 0:01:36.1]} 33... Ke5 {[%clk
0:00:12.3]} 34. Rd7 {[%clk 0:01:33]} 34... Nf5 {[%clk 0:00:11.5]} 35. Rd5+
{[%clk 0:01:25.8]} 35... Kf6 {[%clk 0:00:11.6]} 36. Ra5 {[%clk 0:01:26.5]} 36...
Ne3 {[%clk 0:00:10.9]} 37. Nd5+ {[%clk 0:01:26.4]} 37... Kg7 {[%clk 0:00:04]}
38. Nxe3 {[%clk 0:01:22.2]} 38... fxe3+ {[%clk 0:00:04.9]} 39. Ke2 {[%clk
0:01:22.4]} 39... a6 {[%clk 0:00:05.8]} 40. Ra3 {[%clk 0:01:22]} 40... Rc6
{[%clk 0:00:04.9]} 41. Rc3 {[%clk 0:01:21.6]} 41... Rb6 {[%clk 0:00:03.8]} 42.
b3 {[%clk 0:01:19.8]} 42... Kf6 {[%clk 0:00:04.1]} 43. Rxe3 {[%clk 0:01:19.9]}
43... Rc6 {[%clk 0:00:05]} 44. c4 {[%clk 0:01:20.5]} 44... Rc5 {[%clk
0:00:05.5]} 45. Rd3 {[%clk 0:01:20.3]} 45... Rg5 {[%clk 0:00:06]} 46. g4 {[%clk
0:01:20.3]} 46... Ra5 {[%clk 0:00:06.9]} 47. a4 {[%clk 0:01:19.7]} 47... Kg5
{[%clk 0:00:07.8]} 48. Rd5+ {[%clk 0:01:19.7]} 1-0

[Event "Early-Titled-Tuesday-Blitz-September-05-2023"]
[Site "Chess.com"]
[Date "2023.09.05"]
[Round "7"]
[White "UB_TheQueen"]
[Black "TC2304"]
[Result "1-0"]
[WhiteElo "2089"]
[BlackElo "2332"]
[TimeControl "180+1"]
[EndTime "9:16:08 PDT"]
[Termination "UB_TheQueen won by resignation"]

1. e4 {[%clk 0:03:00.9]} 1... c6 {[%clk 0:03:00.6]} 2. d4 {[%clk 0:02:58.5]}
2... d5 {[%clk 0:03:00.9]} 3. e5 {[%clk 0:02:57.8]} 3... c5 {[%clk 0:02:57]} 4.
Nf3 {[%clk 0:02:57]} 4... Nc6 {[%clk 0:02:55]} 5. dxc5 {[%clk 0:02:55.8]} 5...
Bf5 {[%clk 0:02:54.8]} 6. c3 {[%clk 0:02:56.2]} 6... e6 {[%clk 0:02:53.5]} 7. b4
{[%clk 0:02:55.8]} 7... a5 {[%clk 0:02:52.2]} 8. Bb5 {[%clk 0:02:51.6]} 8... Ne7
{[%clk 0:02:48.3]} 9. Nd4 {[%clk 0:02:40.3]} 9... Bg6 {[%clk 0:02:34.2]} 10. Bg5
{[%clk 0:02:38.1]} 10... Qc7 {[%clk 0:02:28.8]} 11. O-O {[%clk 0:02:33.9]} 11...
Nf5 {[%clk 0:02:14.1]} 12. Qa4 {[%clk 0:02:21.5]} 12... Nxd4 {[%clk 0:02:04.7]}
13. cxd4 {[%clk 0:02:20.4]} 13... Be7 {[%clk 0:02:00.1]} 14. Bxe7 {[%clk
0:02:17]} 14... Kxe7 {[%clk 0:02:01]} 15. Bxc6 {[%clk 0:02:02.8]} 15... bxc6
{[%clk 0:02:00.2]} 16. b5 {[%clk 0:01:54.7]} 16... cxb5 {[%clk 0:01:59.8]} 17.
Qxb5 {[%clk 0:01:55.6]} 17... Rhb8 {[%clk 0:01:59.4]} 18. Qe2 {[%clk 0:01:38.2]}
18... Rb4 {[%clk 0:01:51.7]} 19. Rd1 {[%clk 0:01:37.3]} 19... Rab8 {[%clk
0:01:46.6]} 20. Nc3 {[%clk 0:01:37]} 20... Rb2 {[%clk 0:01:39.7]} 21. Qe3 {[%clk
0:01:25.6]} 21... Rc2 {[%clk 0:01:38.3]} 22. a4 {[%clk 0:01:22.4]} 22... Rb3
{[%clk 0:01:37.2]} 23. Nxd5+ {[%clk 0:00:55]} 23... exd5 {[%clk 0:01:35]} 24.
Qxb3 {[%clk 0:00:55.9]} 24... Qd7 {[%clk 0:01:29.8]} 25. Qb5 {[%clk 0:00:51.9]}
25... Qf5 {[%clk 0:01:23.5]} 26. Qb7+ {[%clk 0:00:48.2]} 26... Ke8 {[%clk
0:01:23.1]} 27. Rf1 {[%clk 0:00:42.2]} 27... Bh5 {[%clk 0:01:20.7]} 28. Qxd5
{[%clk 0:00:40.3]} 28... Be2 {[%clk 0:01:18]} 29. Rab1 {[%clk 0:00:36.2]} 29...
Qc8 {[%clk 0:00:52]} 30. Rfe1 {[%clk 0:00:21.2]} 30... Bd3 {[%clk 0:00:29]} 31.
Qd6 {[%clk 0:00:18.1]} 31... Re2 {[%clk 0:00:27.9]} 32. Rxe2 {[%clk 0:00:17.2]}
32... Bxb1 {[%clk 0:00:27.7]} 33. Rb2 {[%clk 0:00:17]} 1-0

[Event "Early-Titled-Tuesday-Blitz-September-05-2023"]
[Site "Chess.com"]
[Date "2023.09.05"]
[Round "7"]
[White "PeshkaCh"]
[Black "dropstoneDP"]
[Result "0-1"]
[WhiteElo "2793"]
[BlackElo "3003"]
[TimeControl "180+1"]
[EndTime "9:16:09 PDT"]
[Termination "dropstoneDP won on time"]

1. Nf3 {[%clk 0:03:00.9]} 1... d5 {[%clk 0:02:59.3]} 2. d4 {[%clk 0:03:00.6]}
2... Nf6 {[%clk 0:02:59.6]} 3. c4 {[%clk 0:03:00.9]} 3... e6 {[%clk 0:03:00.1]}
4. Nc3 {[%clk 0:03:00.8]} 4... c5 {[%clk 0:03:00.5]} 5. cxd5 {[%clk 0:03:01.1]}
5... Nxd5 {[%clk 0:03:01.4]} 6. e4 {[%clk 0:03:01.5]} 6... Nxc3 {[%clk 0:03:02]}
7. bxc3 {[%clk 0:03:02.4]} 7... cxd4 {[%clk 0:03:02.9]} 8. cxd4 {[%clk
0:03:03.3]} 8... Bb4+ {[%clk 0:03:03.3]} 9. Bd2 {[%clk 0:03:04]} 9... Bxd2+
{[%clk 0:03:03.9]} 10. Qxd2 {[%clk 0:03:04.9]} 10... O-O {[%clk 0:03:04.3]} 11.
Bc4 {[%clk 0:03:05.6]} 11... Nd7 {[%clk 0:03:04.8]} 12. O-O {[%clk 0:03:05.9]}
12... b6 {[%clk 0:03:05.2]} 13. d5 {[%clk 0:03:05.6]} 13... Nf6 {[%clk
0:03:04.4]} 14. dxe6 {[%clk 0:03:02.5]} 14... Bxe6 {[%clk 0:03:04.1]} 15. Bxe6
{[%clk 0:03:01.4]} 15... Qxd2 {[%clk 0:03:02.8]} 16. Bxf7+ {[%clk 0:03:01.4]}
16... Rxf7 {[%clk 0:03:03.7]} 17. Nxd2 {[%clk 0:03:02]} 17... Rd8 {[%clk
0:03:03.5]} 18. e5 {[%clk 0:02:41.5]} 18... Rxd2 {[%clk 0:03:03]} 19. exf6
{[%clk 0:02:42.1]} 19... Rxf6 {[%clk 0:03:03.9]} 20. a4 {[%clk 0:02:40.2]} 20...
Rf5 {[%clk 0:03:04.3]} 21. Rac1 {[%clk 0:02:38.2]} 21... Ra2 {[%clk 0:03:01.5]}
22. Rc8+ {[%clk 0:02:36.7]} 22... Rf8 {[%clk 0:03:01.1]} 23. Rc4 {[%clk
0:02:37]} 23... h6 {[%clk 0:03:00.5]} 24. h3 {[%clk 0:02:36.9]} 24... Rf5 {[%clk
0:03:00.4]} 25. Rg4 {[%clk 0:02:15.1]} 25... Ra5 {[%clk 0:02:54.5]} 26. Rd1
{[%clk 0:02:15]} 26... R2xa4 {[%clk 0:02:54.6]} 27. Rd8+ {[%clk 0:02:15.7]}
27... Kh7 {[%clk 0:02:54.6]} 28. Rg3 {[%clk 0:02:16.4]} 28... Rg5 {[%clk
0:02:50.5]} 29. Rf3 {[%clk 0:02:10.6]} 29... b5 {[%clk 0:02:49]} 30. Rd7 {[%clk
0:02:09.5]} 30... a5 {[%clk 0:02:45]} 31. Rff7 {[%clk 0:02:04.4]} 31... b4
{[%clk 0:02:28.5]} 32. f4 {[%clk 0:02:02.8]} 32... Rg3 {[%clk 0:02:23.3]} 33.
Kh2 {[%clk 0:01:50.2]} 33... Raa3 {[%clk 0:02:22.5]} 34. f5 {[%clk 0:01:44.4]}
34... Rg5 {[%clk 0:02:16.3]} 35. g4 {[%clk 0:01:43.6]} 35... b3 {[%clk
0:01:33.9]} 36. f6 {[%clk 0:01:26.6]} 36... a4 {[%clk 0:01:34.1]} 37. Rxg7+
{[%clk 0:01:17.2]} 37... Rxg7 {[%clk 0:01:33.6]} 38. Rxg7+ {[%clk 0:01:18.1]}
38... Kh8 {[%clk 0:01:34.2]} 39. Rb7 {[%clk 0:01:18.4]} 39... Ra1 {[%clk
0:01:27.7]} 40. Kg2 {[%clk 0:01:05.9]} 40... Kg8 {[%clk 0:01:24.9]} 41. h4
{[%clk 0:00:59.4]} 41... Rc1 {[%clk 0:01:20.8]} 42. g5 {[%clk 0:00:13.5]} 42...
hxg5 {[%clk 0:01:20.6]} 43. hxg5 {[%clk 0:00:12.6]} 43... Rc5 {[%clk 0:01:21]}
44. Kf3 {[%clk 0:00:08.4]} 44... Rxg5 {[%clk 0:01:19.6]} 45. Ke3 {[%clk
0:00:06.3]} 45... Ra5 {[%clk 0:01:19.2]} 46. Kd2 {[%clk 0:00:03.6]} 46... a3
{[%clk 0:01:19.3]} 47. Rxb3 {[%clk 0:00:02.1]} 47... a2 {[%clk 0:01:19.8]} 48.
Rg3+ {[%clk 0:00:02.6]} 48... Kf8 {[%clk 0:01:19.9]} 49. Rg1 {[%clk 0:00:03]}
49... a1=Q {[%clk 0:01:20.2]} 50. Rxa1 {[%clk 0:00:01.3]} 50... Rxa1 {[%clk
0:01:21.1]} 0-1

[Event "Early-Titled-Tuesday-Blitz-September-05-2023"]
[Site "Chess.com"]
[Date "2023.09.05"]
[Round "7"]
[White "Parhamov"]
[Black "Bigfish1995"]
[Result "0-1"]
[WhiteElo "2925"]
[BlackElo "3100"]
[TimeControl "180+1"]
[EndTime "9:16:10 PDT"]
[Termination "Bigfish1995 won on time"]

1. e4 {[%clk 0:02:59.7]} 1... a6 {[%clk 0:02:24.8]} 2. d4 {[%clk 0:02:57.9]}
2... Ra7 {[%clk 0:02:25.3]} 3. Bd3 {[%clk 0:02:57.6]} 3... Ra8 {[%clk
0:02:26.2]} 4. Ne2 {[%clk 0:02:57]} 4... g6 {[%clk 0:02:26.6]} 5. O-O {[%clk
0:02:57]} 5... Bg7 {[%clk 0:02:27.1]} 6. c3 {[%clk 0:02:56.1]} 6... d6 {[%clk
0:02:26.9]} 7. f4 {[%clk 0:02:54.3]} 7... c5 {[%clk 0:02:20.7]} 8. dxc5 {[%clk
0:02:51.7]} 8... dxc5 {[%clk 0:02:19.6]} 9. Be3 {[%clk 0:02:51.8]} 9... Qc7
{[%clk 0:02:18.4]} 10. h3 {[%clk 0:02:41.6]} 10... c4 {[%clk 0:02:07.9]} 11. Bc2
{[%clk 0:02:40.7]} 11... Nc6 {[%clk 0:02:07.7]} 12. Nd2 {[%clk 0:02:36.7]} 12...
b5 {[%clk 0:02:07.4]} 13. a4 {[%clk 0:02:36.1]} 13... Bb7 {[%clk 0:02:07]} 14.
axb5 {[%clk 0:02:36.3]} 14... axb5 {[%clk 0:02:07.2]} 15. Rxa8+ {[%clk 0:02:37]}
15... Bxa8 {[%clk 0:02:07.9]} 16. Qa1 {[%clk 0:01:52.2]} 16... Bb7 {[%clk
0:02:06.5]} 17. Qa3 {[%clk 0:01:52.4]} 17... Nf6 {[%clk 0:01:53.9]} 18. Qc5
{[%clk 0:01:52.1]} 18... Qa5 {[%clk 0:01:46.8]} 19. b4 {[%clk 0:01:33]} 19...
Qa6 {[%clk 0:01:39.2]} 20. Qb6 {[%clk 0:01:11.9]} 20... Qxb6 {[%clk 0:01:36.5]}
21. Bxb6 {[%clk 0:01:11.7]} 21... O-O {[%clk 0:01:37.1]} 22. Ra1 {[%clk
0:01:11.8]} 22... Nd7 {[%clk 0:01:20.7]} 23. Bd4 {[%clk 0:01:11.9]} 23... e5
{[%clk 0:01:18.8]} 24. fxe5 {[%clk 0:01:09.6]} 24... Ndxe5 {[%clk 0:01:18.5]}
25. Be3 {[%clk 0:00:31.4]} 25... Rd8 {[%clk 0:01:12.4]} 26. Ra3 {[%clk
0:00:24.3]} 26... Nd3 {[%clk 0:01:09.5]} 27. Nf3 {[%clk 0:00:24.2]} 27... f5
{[%clk 0:00:53.4]} 28. exf5 {[%clk 0:00:24]} 28... Re8 {[%clk 0:00:53.3]} 29.
Ned4 {[%clk 0:00:12.9]} 29... Rxe3 {[%clk 0:00:50.7]} 30. Nxb5 {[%clk
0:00:12.6]} 30... Ne7 {[%clk 0:00:33.4]} 0-1

[Event "Early-Titled-Tuesday-Blitz-September-05-2023"]
[Site "Chess.com"]
[Date "2023.09.05"]
[Round "7"]
[White "Korchmar_Vasiliy"]
[Black "DrDreBeats"]
[Result "1-0"]
[WhiteElo "2713"]
[BlackElo "2554"]
[TimeControl "180+1"]
[EndTime "9:16:15 PDT"]
[Termination "Korchmar_Vasiliy won by resignation"]

1. e4 {[%clk 0:03:00.9]} 1... d5 {[%clk 0:02:59.7]} 2. exd5 {[%clk 0:03:00.4]}
2... Qxd5 {[%clk 0:03:00.6]} 3. Nc3 {[%clk 0:03:01]} 3... Qa5 {[%clk 0:03:00.3]}
4. d4 {[%clk 0:03:01.1]} 4... Nf6 {[%clk 0:03:00.6]} 5. Nf3 {[%clk 0:03:00.7]}
5... Nc6 {[%clk 0:03:00.8]} 6. Bb5 {[%clk 0:03:00.3]} 6... Nd5 {[%clk
0:02:59.8]} 7. O-O {[%clk 0:02:27.9]} 7... Nxc3 {[%clk 0:02:59.4]} 8. Bxc6+
{[%clk 0:02:28.2]} 8... bxc6 {[%clk 0:03:00.3]} 9. bxc3 {[%clk 0:02:28.8]} 9...
Qxc3 {[%clk 0:03:00.7]} 10. Bf4 {[%clk 0:02:14.6]} 10... Bg4 {[%clk 0:02:57.6]}
11. Rb1 {[%clk 0:01:54.8]} 11... Bxf3 {[%clk 0:02:55.7]} 12. Qxf3 {[%clk
0:01:44.3]} 12... Qxf3 {[%clk 0:02:54.9]} 13. gxf3 {[%clk 0:01:45.2]} 13... e6
{[%clk 0:02:54.7]} 14. Bxc7 {[%clk 0:01:41.9]} 14... Be7 {[%clk 0:02:53.8]} 15.
Rb7 {[%clk 0:01:35]} 15... O-O {[%clk 0:02:53.2]} 16. Rfb1 {[%clk 0:01:31.9]}
16... Bf6 {[%clk 0:02:51.6]} 17. c3 {[%clk 0:01:29.1]} 17... h5 {[%clk
0:02:34.3]} 18. f4 {[%clk 0:01:28]} 18... Kh7 {[%clk 0:02:33.6]} 19. Kg2 {[%clk
0:01:28.1]} 19... Kg6 {[%clk 0:02:33.7]} 20. Kf3 {[%clk 0:01:28.8]} 20... Rfc8
{[%clk 0:02:20.9]} 21. Bd6 {[%clk 0:01:27.2]} 21... Rd8 {[%clk 0:02:13.3]} 22.
Bc5 {[%clk 0:01:09.4]} 22... a5 {[%clk 0:02:03.4]} 23. Rg1+ {[%clk 0:01:02.1]}
23... Kh7 {[%clk 0:02:03.3]} 24. Rxf7 {[%clk 0:01:02.6]} 24... Rab8 {[%clk
0:02:03.6]} 25. Ra7 {[%clk 0:00:43.9]} 25... Rb5 {[%clk 0:02:01.8]} 26. Be7
{[%clk 0:00:40.9]} 26... Bxe7 {[%clk 0:01:44.7]} 27. Rxe7 {[%clk 0:00:41.8]}
27... Rg8 {[%clk 0:01:44.5]} 28. Rxe6 {[%clk 0:00:42.2]} 28... Rf5 {[%clk
0:01:39.8]} 29. Rg5 {[%clk 0:00:33.8]} 29... Rxg5 {[%clk 0:01:38.5]} 30. fxg5
{[%clk 0:00:34.7]} 30... Rf8+ {[%clk 0:01:39.3]} 31. Ke3 {[%clk 0:00:33.1]}
31... c5 {[%clk 0:01:39.5]} 32. dxc5 {[%clk 0:00:25]} 32... Rf5 {[%clk
0:01:39.7]} 33. f4 {[%clk 0:00:14.2]} 33... Rxc5 {[%clk 0:01:39.3]} 34. Kd4
{[%clk 0:00:14.7]} 34... Rc8 {[%clk 0:01:39.3]} 35. Re2 {[%clk 0:00:13.8]} 35...
Rd8+ {[%clk 0:01:37.6]} 36. Kc5 {[%clk 0:00:12.1]} 36... Rc8+ {[%clk 0:01:37.9]}
37. Kd4 {[%clk 0:00:12.4]} 37... Rd8+ {[%clk 0:01:36.4]} 38. Ke4 {[%clk
0:00:11]} 38... Re8+ {[%clk 0:01:33.2]} 39. Kd3 {[%clk 0:00:11]} 39... Rd8+
{[%clk 0:01:33.5]} 40. Kc2 {[%clk 0:00:10.7]} 40... Kg6 {[%clk 0:01:33.8]} 41.
Re5 {[%clk 0:00:09.7]} 41... a4 {[%clk 0:01:33.5]} 42. c4 {[%clk 0:00:06.9]}
42... h4 {[%clk 0:01:32.6]} 43. c5 {[%clk 0:00:06]} 43... Rd4 {[%clk 0:01:32.8]}
44. Kc3 {[%clk 0:00:06]} 44... Rxf4 {[%clk 0:01:32.8]} 45. c6 {[%clk 0:00:06]}
45... Rf1 {[%clk 0:01:31.3]} 46. Rc5 {[%clk 0:00:06.4]} 46... Rf8 {[%clk
0:01:24.9]} 47. c7 {[%clk 0:00:06.7]} 47... Rc8 {[%clk 0:01:24.7]} 48. Kb4
{[%clk 0:00:07.1]} 48... h3 {[%clk 0:01:19.8]} 49. Kb5 {[%clk 0:00:06.7]} 49...
Kf7 {[%clk 0:01:20.2]} 50. Kb6 {[%clk 0:00:06.9]} 50... Ke7 {[%clk 0:01:20.7]}
51. Kb7 {[%clk 0:00:07.5]} 51... Rf8 {[%clk 0:01:20.6]} 52. c8=Q {[%clk
0:00:07.7]} 1-0

[Event "Early-Titled-Tuesday-Blitz-September-05-2023"]
[Site "Chess.com"]
[Date "2023.09.05"]
[Round "7"]
[White "andrzej"]
[Black "brm72"]
[Result "1-0"]
[WhiteElo "2406"]
[BlackElo "2542"]
[TimeControl "180+1"]
[EndTime "9:16:15 PDT"]
[Termination "andrzej won by resignation"]

1. e4 {[%clk 0:02:55.4]} 1... e6 {[%clk 0:02:58.9]} 2. d4 {[%clk 0:02:55.2]}
2... d5 {[%clk 0:02:59.8]} 3. Nc3 {[%clk 0:02:55.7]} 3... Bb4 {[%clk 0:02:59.4]}
4. e5 {[%clk 0:02:56]} 4... Ne7 {[%clk 0:02:59.8]} 5. a3 {[%clk 0:02:56.2]} 5...
Bxc3+ {[%clk 0:02:59.9]} 6. bxc3 {[%clk 0:02:56.7]} 6... c5 {[%clk 0:03:00.8]}
7. Qg4 {[%clk 0:02:57]} 7... Qc7 {[%clk 0:02:57]} 8. Bd3 {[%clk 0:02:55.2]} 8...
cxd4 {[%clk 0:02:56]} 9. Ne2 {[%clk 0:02:53.1]} 9... dxc3 {[%clk 0:02:42.5]} 10.
Qxg7 {[%clk 0:02:52.5]} 10... Rg8 {[%clk 0:02:42.5]} 11. Qxh7 {[%clk 0:02:53.1]}
11... d4 {[%clk 0:02:37.2]} 12. h4 {[%clk 0:02:27]} 12... Nbc6 {[%clk
0:02:35.5]} 13. Bg5 {[%clk 0:02:20.1]} 13... Qxe5 {[%clk 0:02:24.3]} 14. f4
{[%clk 0:02:08.7]} 14... Qc5 {[%clk 0:02:08.7]} 15. h5 {[%clk 0:02:01.2]} 15...
Bd7 {[%clk 0:02:05.5]} 16. h6 {[%clk 0:01:59.2]} 16... a6 {[%clk 0:01:36.8]} 17.
Qe4 {[%clk 0:01:50.6]} 17... Nd5 {[%clk 0:01:23.2]} 18. h7 {[%clk 0:01:42.7]}
18... Rh8 {[%clk 0:01:22.4]} 19. Qf3 {[%clk 0:01:24.1]} 19... Nce7 {[%clk
0:01:13.8]} 20. Be4 {[%clk 0:01:19.5]} 20... Bc6 {[%clk 0:01:12.3]} 21. Rd1
{[%clk 0:01:12.2]} 21... Ne3 {[%clk 0:01:05.9]} 22. Bxc6+ {[%clk 0:01:01.1]}
22... Nxc6 {[%clk 0:01:02.3]} 23. Qe4 {[%clk 0:00:46.8]} 23... Nxd1 {[%clk
0:00:33]} 24. Bf6 {[%clk 0:00:39.6]} 24... Kd7 {[%clk 0:00:33.2]} 25. Kxd1
{[%clk 0:00:28.5]} 25... Qc4 {[%clk 0:00:20.7]} 26. Nc1 {[%clk 0:00:24.3]} 26...
Kc7 {[%clk 0:00:20.1]} 27. Nd3 {[%clk 0:00:22.9]} 27... Rad8 {[%clk 0:00:19.7]}
28. f5 {[%clk 0:00:16.4]} 28... Qd5 {[%clk 0:00:19.7]} 29. Qxd5 {[%clk
0:00:16.2]} 29... Rxd5 {[%clk 0:00:20.6]} 30. Bxh8 {[%clk 0:00:16.1]} 30... Rc5
{[%clk 0:00:20.4]} 31. Bf6 {[%clk 0:00:15.3]} 31... Rxf5 {[%clk 0:00:20.6]} 32.
h8=Q {[%clk 0:00:15]} 1-0

[Event "Early-Titled-Tuesday-Blitz-September-05-2023"]
[Site "Chess.com"]
[Date "2023.09.05"]
[Round "7"]
[White "AndreiITrifan"]
[Black "Mops_2004"]
[Result "0-1"]
[WhiteElo "2627"]
[BlackElo "2827"]
[TimeControl "180+1"]
[EndTime "9:16:16 PDT"]
[Termination "Mops_2004 won by resignation"]

1. e4 {[%clk 0:03:00]} 1... g6 {[%clk 0:03:00.6]} 2. d4 {[%clk 0:02:58.8]} 2...
Bg7 {[%clk 0:03:01.1]} 3. Nc3 {[%clk 0:02:58.3]} 3... d6 {[%clk 0:03:01.7]} 4.
f4 {[%clk 0:02:55.3]} 4... Nf6 {[%clk 0:03:01.3]} 5. Nf3 {[%clk 0:02:52.1]} 5...
c5 {[%clk 0:03:01.3]} 6. dxc5 {[%clk 0:02:44]} 6... Qa5 {[%clk 0:03:01.3]} 7.
Bb5+ {[%clk 0:02:23.2]} 7... Bd7 {[%clk 0:02:48.5]} 8. Bxd7+ {[%clk 0:01:43.8]}
8... Nbxd7 {[%clk 0:02:48.6]} 9. cxd6 {[%clk 0:01:42.6]} 9... Nxe4 {[%clk
0:02:47.1]} 10. Bd2 {[%clk 0:01:42.8]} 10... Nxd6 {[%clk 0:02:14.4]} 11. Qe2
{[%clk 0:01:31.1]} 11... O-O {[%clk 0:02:06.9]} 12. O-O-O {[%clk 0:01:16]} 12...
Rfe8 {[%clk 0:01:49.2]} 13. Kb1 {[%clk 0:01:13]} 13... Rac8 {[%clk 0:01:44.4]}
14. Be1 {[%clk 0:00:30.8]} 14... Qb6 {[%clk 0:01:20.9]} 15. Na4 {[%clk
0:00:19.9]} 15... Qc6 {[%clk 0:01:17.1]} 16. b3 {[%clk 0:00:20.4]} 16... Ne4
{[%clk 0:00:57.8]} 17. Nd4 {[%clk 0:00:18.2]} 17... Bxd4 {[%clk 0:00:40.2]} 18.
Rxd4 {[%clk 0:00:19.1]} 18... Ndf6 {[%clk 0:00:40.8]} 19. g4 {[%clk 0:00:17.2]}
19... b5 {[%clk 0:00:36]} 20. g5 {[%clk 0:00:13.9]} 20... bxa4 {[%clk
0:00:30.6]} 21. gxf6 {[%clk 0:00:14]} 21... exf6 {[%clk 0:00:24.3]} 22. Qd1
{[%clk 0:00:07.7]} 22... a3 {[%clk 0:00:19.1]} 23. Bb4 {[%clk 0:00:05.5]} 23...
Nc3+ {[%clk 0:00:16.9]} 24. Bxc3 {[%clk 0:00:04.8]} 24... Qxc3 {[%clk
0:00:17.8]} 25. Qc1 {[%clk 0:00:05.3]} 25... Qxd4 {[%clk 0:00:18]} 26. Qxa3
{[%clk 0:00:05.2]} 26... Qe4 {[%clk 0:00:17]} 27. Rc1 {[%clk 0:00:06.1]} 27...
Re6 {[%clk 0:00:16.9]} 28. h4 {[%clk 0:00:07]} 28... Rec6 {[%clk 0:00:16.9]} 29.
h5 {[%clk 0:00:07.9]} 29... Rxc2 {[%clk 0:00:16.4]} 0-1

[Event "Early-Titled-Tuesday-Blitz-September-05-2023"]
[Site "Chess.com"]
[Date "2023.09.05"]
[Round "7"]
[White "qx4z"]
[Black "TrenerChos"]
[Result "1-0"]
[WhiteElo "2826"]
[BlackElo "2620"]
[TimeControl "180+1"]
[EndTime "9:16:17 PDT"]
[Termination "qx4z won on time"]

1. d4 {[%clk 0:02:54.8]} 1... Nf6 {[%clk 0:02:59.1]} 2. Bf4 {[%clk 0:02:47.4]}
2... g6 {[%clk 0:03:00]} 3. Nc3 {[%clk 0:02:40.8]} 3... Bg7 {[%clk 0:02:59.9]}
4. e4 {[%clk 0:02:34.1]} 4... d6 {[%clk 0:02:57.1]} 5. Qd2 {[%clk 0:02:34.1]}
5... O-O {[%clk 0:02:56.7]} 6. O-O-O {[%clk 0:02:33.8]} 6... Nc6 {[%clk
0:02:54.4]} 7. Nf3 {[%clk 0:02:32.7]} 7... Bg4 {[%clk 0:02:52.4]} 8. Qe3 {[%clk
0:02:32.9]} 8... Nd7 {[%clk 0:02:50.8]} 9. Bg5 {[%clk 0:02:31.8]} 9... Qe8
{[%clk 0:02:27.7]} 10. Bh6 {[%clk 0:02:30.3]} 10... Bxf3 {[%clk 0:02:25.1]} 11.
gxf3 {[%clk 0:02:29.9]} 11... e5 {[%clk 0:02:25]} 12. dxe5 {[%clk 0:02:29.9]}
12... Ndxe5 {[%clk 0:02:22]} 13. Be2 {[%clk 0:02:29.6]} 13... f5 {[%clk
0:02:19.1]} 14. Bxg7 {[%clk 0:02:19.6]} 14... Kxg7 {[%clk 0:02:19]} 15. h4
{[%clk 0:02:20.3]} 15... fxe4 {[%clk 0:02:13.2]} 16. fxe4 {[%clk 0:02:16.4]}
16... Qf7 {[%clk 0:02:12.8]} 17. Nd5 {[%clk 0:02:07.8]} 17... Qxf2 {[%clk
0:02:06.9]} 18. Qd2 {[%clk 0:02:08.4]} 18... Nf3 {[%clk 0:01:33.2]} 19. Qc3+
{[%clk 0:02:06.8]} 19... Nce5 {[%clk 0:01:31.7]} 20. Bxf3 {[%clk 0:01:43]} 20...
Rxf3 {[%clk 0:01:22.2]} 21. Qxc7+ {[%clk 0:01:42.4]} 21... Rf7 {[%clk
0:01:11.5]} 22. Qxd6 {[%clk 0:01:40.2]} 22... Nc4 {[%clk 0:01:08.3]} 23. Qb4
{[%clk 0:01:40.1]} 23... Rc8 {[%clk 0:01:06.7]} 24. Qc3+ {[%clk 0:01:36.9]}
24... Kg8 {[%clk 0:01:02.7]} 25. h5 {[%clk 0:01:21.9]} 25... Rf3 {[%clk
0:00:48.6]} 26. Ne7+ {[%clk 0:01:19.9]} 26... Kf7 {[%clk 0:00:44.6]} 27. hxg6+
{[%clk 0:01:19.6]} 27... Ke6 {[%clk 0:00:22.9]} 28. Qb4 {[%clk 0:00:56]} 28...
a5 {[%clk 0:00:07.9]} 29. Qxb7 {[%clk 0:00:52.7]} 29... Rc5 {[%clk 0:00:07.2]}
30. Qd7+ {[%clk 0:00:51.3]} 30... Ke5 {[%clk 0:00:03.8]} 31. Nc6+ {[%clk
0:00:50.6]} 31... Kf4 {[%clk 0:00:03.5]} 32. Qf7+ {[%clk 0:00:45.2]} 32... Ke3
{[%clk 0:00:01.3]} 33. Rhe1+ {[%clk 0:00:44.8]} 33... Qxe1 {[%clk 0:00:01.2]}
34. Rxe1+ {[%clk 0:00:45.7]} 34... Kf2 {[%clk 0:00:01.6]} 35. Rf1+ {[%clk
0:00:46.2]} 1-0